[Event "Championnat du monde jeunes U10"]
[Date "2024.11.17"]
[White "Sander, Tino"]
[Black "Shrubok, Herman"]
[WhiteElo "1736"]
[BlackElo "1477"]
[Round "3.4"]
[Result "0-1"]
[TimeControl "5400+30"]

1. e4 {[%clk 1:30:57]} 1... c5 {[%clk 1:30:33]} 2. Nf3 {[%clk 1:31:11]} 2... e6
{[%clk 1:30:29]} 3. d4 {[%clk 1:31:27]} 3... cxd4 {[%clk 1:30:18]} 4. Nxd4
{[%clk 1:31:32]} 4... Nf6 {[%clk 1:30:13]} 5. Nc3 {[%clk 1:31:46]} 5... Nc6
{[%clk 1:29:58]} 6. Ndb5 {[%clk 1:31:31]} 6... Bc5 {[%clk 1:28:55]} 7. Bf4
{[%clk 1:30:06]} 7... O-O {[%clk 1:26:56]} 8. Bc7 {[%clk 1:30:11]} 8... Qe7
{[%clk 1:24:58]} 9. Bd6 {[%clk 1:30:27]} 9... Bxd6 {[%clk 1:24:44]} 10. Qxd6
{[%clk 1:30:33]} 10... Qd8 {[%clk 1:22:00]} 11. Rd1 {[%clk 1:24:56]} 11... a6
{[%clk 1:15:52]} 12. Nd4 {[%clk 1:25:01]} 12... Ne7 {[%clk 1:13:18]} 13. Nf3
{[%clk 1:05:54]} 13... Ne8 {[%clk 1:07:47]} 14. Qd2 {[%clk 0:53:20]} 14... Qc7
{[%clk 1:03:35]} 15. Be2 {[%clk 0:44:22]} 15... b5 {[%clk 1:01:52]} 16. O-O
{[%clk 0:42:47]} 16... d6 {[%clk 1:00:36]} 17. a4 {[%clk 0:38:07]} 17... b4
{[%clk 0:59:27]} 18. Na2 {[%clk 0:38:02]} 18... a5 {[%clk 0:57:54]} 19. c3
{[%clk 0:30:48]} 19... bxc3 {[%clk 0:56:57]} 20. Nxc3 {[%clk 0:30:47]} 20... Qb6
{[%clk 0:55:11]} 21. Bb5 {[%clk 0:29:20]} 21... Nc6 {[%clk 0:54:32]} 22. Nd4
{[%clk 0:24:57]} 22... Bb7 {[%clk 0:52:42]} 23. Nxc6 {[%clk 0:23:18]} 23... Bxc6
{[%clk 0:53:00]} 24. Bxc6 {[%clk 0:23:34]} 24... Qxc6 {[%clk 0:53:22]} 25. Rfe1
{[%clk 0:22:53]} 25... Rd8 {[%clk 0:52:24]} 26. Nb5 {[%clk 0:22:39]} 26... Qa6
{[%clk 0:50:47]} 27. Rc1 {[%clk 0:21:44]} 27... d5 {[%clk 0:49:38]} 28. exd5
{[%clk 0:17:42]} 28... Rxd5 {[%clk 0:49:47]} 29. Qc3 {[%clk 0:17:13]} 29... Qb6
{[%clk 0:48:58]} 30. Qc6 {[%clk 0:16:46]} 30... Qd8 {[%clk 0:48:44]} 31. Nc3
{[%clk 0:11:09]} 31... Rd6 {[%clk 0:48:49]} 32. Red1 {[%clk 0:10:41]} 32... Rxc6
{[%clk 0:47:21]} 33. Rxd8 {[%clk 0:11:05]} 33... Nd6 {[%clk 0:46:34]} 34. Rxf8+
{[%clk 0:10:27]} 34... Kxf8 {[%clk 0:46:56]} 35. Ne2 {[%clk 0:10:20]} 35... Rb6
{[%clk 0:47:01]} 36. Rc2 {[%clk 0:10:23]} 36... Rb4 {[%clk 0:46:58]} 37. Nc3
{[%clk 0:08:52]} 37... Nc4 {[%clk 0:46:10]} 38. Na2 {[%clk 0:08:56]} 38... Rxb2
{[%clk 0:46:04]} 39. Rxc4 {[%clk 0:09:09]} 39... Rxa2 {[%clk 0:46:29]} 40. g3
{[%clk 0:09:30]} 40... Ke7 {[%clk 0:46:27]} 41. h4 {[%clk 0:09:27]} 41... Kd6
{[%clk 0:46:41]} 42. Kg2 {[%clk 0:09:44]} 42... h5 {[%clk 0:46:52]} 43. Kf3
{[%clk 0:09:36]} 43... f6 {[%clk 0:47:05]} 44. Ke3 {[%clk 0:09:02]} 44... e5
{[%clk 0:47:29]} 45. g4 {[%clk 0:07:42]} 45... Kd5 {[%clk 0:47:42]} 46. Rc7
{[%clk 0:06:31]} 46... Rxa4 {[%clk 0:48:01]} 47. Rxg7 {[%clk 0:06:04]} 47...
Rxg4 {[%clk 0:48:21]} 48. Ra7 {[%clk 0:05:52]} 48... a4 {[%clk 0:48:43]} 49.
Ra5+ {[%clk 0:06:09]} 49... Ke6 {[%clk 0:48:59]} 50. Ra6+ {[%clk 0:06:24]} 50...
Kf5 {[%clk 0:49:22]} 51. Kf3 {[%clk 0:06:15]} 51... Rxh4 {[%clk 0:49:45]} 52.
Kg3 {[%clk 0:06:30]} 52... Rf4 {[%clk 0:49:50]} 53. Kg2 {[%clk 0:06:40]} 53...
Kg4 {[%clk 0:49:58]} 54. Ra7 {[%clk 0:06:55]} 54... Rb4 {[%clk 0:50:08]} 55.
Rg7+ {[%clk 0:07:03]} 55... Kf5 {[%clk 0:50:31]} 56. Kh3 {[%clk 0:07:14]} 56...
Rf4 {[%clk 0:50:41]} 57. Kg2 {[%clk 0:07:30]} 57... Rg4+ {[%clk 0:51:05]} 58.
Kf3 {[%clk 0:07:47]} 58... Rxg7 {[%clk 0:51:29]} 0-1

[Variant "Standard"]
[Site "Europe Echecs"]

[Event "Championnat du monde jeunes U10"]
[Date "2024.11.17"]
[White "Ismailov, Omarbek"]
[Black "Li, Weilong"]
[WhiteElo "1625"]
[BlackElo "1735"]
[Round "3.5"]
[Result "0-1"]
[TimeControl "5400+30"]

1. d4 {[%clk 1:30:56]} 1... Nf6 {[%clk 1:30:57]} 2. Bf4 {[%clk 1:31:20]} 2... d6
{[%clk 1:31:21]} 3. Nc3 {[%clk 1:31:42]} 3... Nbd7 {[%clk 1:31:46]} 4. Nf3
{[%clk 1:30:27]} 4... c5 {[%clk 1:32:04]} 5. dxc5 {[%clk 1:29:50]} 5... Nxc5
{[%clk 1:32:25]} 6. e3 {[%clk 1:30:08]} 6... e5 {[%clk 1:32:39]} 7. Bg3 {[%clk
1:30:19]} 7... Be7 {[%clk 1:32:58]} 8. Bc4 {[%clk 1:29:33]} 8... O-O {[%clk
1:33:01]} 9. h3 {[%clk 1:29:24]} 9... a6 {[%clk 1:28:55]} 10. O-O {[%clk
1:17:25]} 10... b5 {[%clk 1:28:13]} 11. Be2 {[%clk 1:16:24]} 11... Bb7 {[%clk
1:27:52]} 12. b4 {[%clk 1:13:36]} 12... Nce4 {[%clk 1:26:37]} 13. Nxe4 {[%clk
1:13:51]} 13... Nxe4 {[%clk 1:27:03]} 14. Bh2 {[%clk 1:11:37]} 14... Nc3 {[%clk
1:27:13]} 15. Qd2 {[%clk 1:11:23]} 15... Qc7 {[%clk 1:27:12]} 16. Rfc1 {[%clk
1:02:27]} 16... f6 {[%clk 1:25:15]} 17. Qe1 {[%clk 0:52:33]} 17... d5 {[%clk
1:24:58]} 18. Nd4 {[%clk 0:38:55]} 18... Nxe2+ {[%clk 1:24:28]} 19. Qxe2 {[%clk
0:36:14]} 19... Qc8 {[%clk 1:24:48]} 20. Nb3 {[%clk 0:36:16]} 20... Bxb4 {[%clk
1:25:10]} 21. a4 {[%clk 0:36:31]} 21... Bc3 {[%clk 1:25:34]} 22. Ra2 {[%clk
0:36:35]} 22... b4 {[%clk 1:25:21]} 23. Rd1 {[%clk 0:36:33]} 23... Qc7 {[%clk
1:24:27]} 24. f4 {[%clk 0:32:16]} 24... a5 {[%clk 1:19:58]} 25. f5 {[%clk
0:27:14]} 25... Ba6 {[%clk 1:19:27]} 26. Qg4 {[%clk 0:27:01]} 26... Bc4 {[%clk
1:19:51]} 27. Bg3 {[%clk 0:26:20]} 27... Qf7 {[%clk 1:19:12]} 28. Bf2 {[%clk
0:21:10]} 28... h5 {[%clk 1:18:37]} 29. Qf3 {[%clk 0:20:22]} 29... e4 {[%clk
1:18:38]} 30. Qg3 {[%clk 0:20:06]} 30... d4 {[%clk 1:18:48]} 31. exd4 {[%clk
0:19:52]} 31... Bxb3 {[%clk 1:19:15]} 32. cxb3 {[%clk 0:20:09]} 32... Qxb3
{[%clk 1:19:42]} 33. Raa1 {[%clk 0:20:29]} 33... Qd5 {[%clk 1:19:58]} 34. Rab1
{[%clk 0:20:38]} 34... Qxf5 {[%clk 1:20:21]} 35. d5 {[%clk 0:20:33]} 35... Qd7
{[%clk 1:20:38]} 36. Qh4 {[%clk 0:20:21]} 36... Qxa4 {[%clk 1:20:54]} 37. Qxe4
{[%clk 0:20:31]} 37... Qd7 {[%clk 1:21:07]} 38. Bc5 {[%clk 0:20:06]} 38... Rfc8
{[%clk 1:21:23]} 39. d6 {[%clk 0:19:45]} 39... Be5 {[%clk 1:19:18]} 40. Qd5+
{[%clk 0:18:48]} 40... Kf8 {[%clk 1:19:40]} 41. Rf1 {[%clk 0:18:50]} 41... Qc6
{[%clk 1:19:36]} 42. Qxe5 {[%clk 0:16:26]} 42... Qxc5+ {[%clk 1:19:43]} 43. Qxc5
{[%clk 0:16:46]} 43... Rxc5 {[%clk 1:20:11]} 44. Rfd1 {[%clk 0:16:44]} 44... Rd8
{[%clk 1:20:31]} 45. Rb2 {[%clk 0:16:10]} 45... Rd7 {[%clk 1:20:38]} 46. Kf2
{[%clk 0:14:39]} 46... Ke8 {[%clk 1:21:03]} 47. Rd4 {[%clk 0:13:02]} 47... Kd8
{[%clk 1:21:16]} 48. g4 {[%clk 0:12:57]} 48... hxg4 {[%clk 1:21:18]} 49. hxg4
{[%clk 0:13:21]} 49... Kc8 {[%clk 1:21:45]} 50. Ke3 {[%clk 0:13:28]} 50... Kb7
{[%clk 1:22:10]} 51. Rh2 {[%clk 0:12:11]} 51... Kc6 {[%clk 1:22:35]} 52. Rh8
{[%clk 0:11:50]} 52... Re5+ {[%clk 1:22:48]} 53. Kd3 {[%clk 0:11:15]} 53... Rxd6
{[%clk 1:22:52]} 54. Rc8+ {[%clk 0:10:44]} 54... Kd7 {[%clk 1:23:16]} 55. Rd8+
{[%clk 0:10:25]} 55... Kxd8 {[%clk 1:23:40]} 56. Rxd6+ {[%clk 0:10:44]} 56...
Kc7 {[%clk 1:24:05]} 57. Rd4 {[%clk 0:10:50]} 57... Kc6 {[%clk 1:24:23]} 58. Kc2
{[%clk 0:10:29]} 58... Kb5 {[%clk 1:24:42]} 59. Rd8 {[%clk 0:10:23]} 59... Rg5
{[%clk 1:24:59]} 60. Rd4 {[%clk 0:10:36]} 60... a4 {[%clk 1:25:23]} 61. Kb2
{[%clk 0:10:43]} 61... Re5 {[%clk 1:25:46]} 62. Kc2 {[%clk 0:10:46]} 62... a3
{[%clk 1:25:28]} 63. Rd3 {[%clk 0:10:25]} 63... Kc4 {[%clk 1:25:51]} 64. Rf3
{[%clk 0:10:33]} 64... Re4 {[%clk 1:26:12]} 65. g5 {[%clk 0:10:29]} 65... fxg5
{[%clk 1:26:37]} 66. Rg3 {[%clk 0:10:17]} 66... b3+ {[%clk 1:26:59]} 67. Kc1
{[%clk 0:10:34]} 67... b2+ {[%clk 1:27:24]} 0-1

[Variant "Standard"]
[Site "Europe Echecs"]

[Event "Championnat du monde jeunes U10"]
[Date "2024.11.17"]
[White "Gim, Hajin"]
[Black "Orsi, Andrea"]
[WhiteElo "1603"]
[BlackElo "1728"]
[Round "3.6"]
[Result "1-0"]
[TimeControl "5400+30"]

1. e4 {[%clk 1:30:58]} 1... e5 {[%clk 1:30:56]} 2. Nc3 {[%clk 1:31:24]} 2... Nf6
{[%clk 1:30:55]} 3. f4 {[%clk 1:31:50]} 3... d6 {[%clk 1:26:45]} 4. Nf3 {[%clk
1:32:13]} 4... Nbd7 {[%clk 1:22:14]} 5. Bc4 {[%clk 1:32:27]} 5... Be7 {[%clk
1:18:38]} 6. d3 {[%clk 1:32:45]} 6... O-O {[%clk 1:17:27]} 7. f5 {[%clk
1:33:11]} 7... c6 {[%clk 1:15:45]} 8. g4 {[%clk 1:33:22]} 8... Nxg4 {[%clk
1:10:47]} 9. Rg1 {[%clk 1:33:24]} 9... Bh4+ {[%clk 1:11:02]} 10. Ke2 {[%clk
1:33:35]} 10... h5 {[%clk 0:35:33]} 11. h3 {[%clk 1:33:05]} 11... Qb6 {[%clk
0:15:21]} 12. Qf1 {[%clk 1:33:17]} 12... Bf2 {[%clk 0:07:28]} 13. Rh1 {[%clk
1:33:09]} 13... Ndf6 {[%clk 0:05:55]} 14. hxg4 {[%clk 1:33:15]} 14... Nxg4
{[%clk 0:06:09]} 15. Rxh5 {[%clk 1:32:32]} 15... Be3 {[%clk 0:05:57]} 16. Qh3
{[%clk 1:32:45]} 1-0

[Variant "Standard"]
[Site "Europe Echecs"]

[Event "Championnat du monde jeunes U10"]
[Date "2024.11.17"]
[White "Thorulsley, Kairaav"]
[Black "Nikitakis, Michail"]
[WhiteElo "1520"]
[BlackElo "1818"]
[Round "3.9"]
[Result "0-1"]
[TimeControl "5400+30"]

1. d4 {[%clk 1:30:56]} 1... Nf6 {[%clk 1:30:53]} 2. Nc3 {[%clk 1:31:14]} 2... d5
{[%clk 1:31:09]} 3. Bf4 {[%clk 1:31:39]} 3... a6 {[%clk 1:30:32]} 4. e3 {[%clk
1:31:50]} 4... Bf5 {[%clk 1:30:16]} 5. f3 {[%clk 1:32:01]} 5... e6 {[%clk
1:30:37]} 6. g4 {[%clk 1:32:25]} 6... Bg6 {[%clk 1:31:04]} 7. h4 {[%clk
1:32:51]} 7... h6 {[%clk 1:31:28]} 8. Bd3 {[%clk 1:33:17]} 8... Bxd3 {[%clk
1:31:50]} 9. Qxd3 {[%clk 1:33:38]} 9... c5 {[%clk 1:31:57]} 10. dxc5 {[%clk
1:33:55]} 10... Bxc5 {[%clk 1:32:16]} 11. O-O-O {[%clk 1:31:40]} 11... Nc6
{[%clk 1:31:20]} 12. Nge2 {[%clk 1:28:48]} 12... Qa5 {[%clk 1:30:46]} 13. Kb1
{[%clk 1:28:50]} 13... b5 {[%clk 1:10:01]} 14. Nc1 {[%clk 1:25:53]} 14... Nd7
{[%clk 1:03:57]} 15. g5 {[%clk 1:24:01]} 15... Nde5 {[%clk 0:56:46]} 16. Qe2
{[%clk 1:13:18]} 16... Nc4 {[%clk 0:49:22]} 17. Nb3 {[%clk 1:11:39]} 17... Qb6
{[%clk 0:42:58]} 18. Rde1 {[%clk 1:04:01]} 18... Bb4 {[%clk 0:39:17]} 19. e4
{[%clk 0:50:14]} 19... O-O-O {[%clk 0:20:10]} 20. exd5 {[%clk 0:48:04]} 20...
Bxc3 {[%clk 0:19:01]} 21. bxc3 {[%clk 0:48:19]} 21... Rxd5 {[%clk 0:19:22]} 22.
g6 {[%clk 0:48:00]} 22... Rd7 {[%clk 0:04:46]} 23. gxf7 {[%clk 0:47:22]} 23...
e5 {[%clk 0:04:29]} 24. Be3 {[%clk 0:42:09]} 24... Nxe3 {[%clk 0:04:36]} 25.
Qxe3 {[%clk 0:42:20]} 25... Rd1+ {[%clk 0:04:57]} 26. Kb2 {[%clk 0:39:20]} 26...
Qxe3 {[%clk 0:05:13]} 27. Rxe3 {[%clk 0:38:53]} 27... Rxh1 {[%clk 0:05:36]} 28.
Nc5 {[%clk 0:39:01]} 28... Na5 {[%clk 0:05:20]} 29. c4 {[%clk 0:37:46]} 29...
Nxc4+ {[%clk 0:05:20]} 30. Kc3 {[%clk 0:38:04]} 30... Nxe3 {[%clk 0:05:37]} 31.
Ne6 {[%clk 0:38:01]} 31... Nd5+ {[%clk 0:05:42]} 32. Kd2 {[%clk 0:37:15]} 32...
Rh2+ {[%clk 0:05:27]} 33. Kc1 {[%clk 0:37:36]} 33... Kd7 {[%clk 0:05:16]} 34.
f8=Q {[%clk 0:36:46]} 34... Rxf8 {[%clk 0:05:38]} 35. Nxf8+ Ke7 {[%clk 0:05:48]}
36. Ng6+ {[%clk 0:37:25]} 36... Kf6 {[%clk 0:06:14]} 37. Nf8 {[%clk 0:37:50]}
37... Rxh4 {[%clk 0:05:57]} 38. Nd7+ {[%clk 0:38:13]} 38... Ke6 {[%clk 0:06:18]}
39. Nc5+ {[%clk 0:38:38]} 39... Kd6 {[%clk 0:06:40]} 40. Nxa6 {[%clk 0:39:02]}
40... Ra4 {[%clk 0:07:05]} 41. Kb2 {[%clk 0:29:01]} 41... Rxa6 {[%clk 0:07:26]}
42. Kb3 {[%clk 0:24:47]} 42... h5 {[%clk 0:07:48]} 43. Kb2 {[%clk 0:25:09]}
43... h4 {[%clk 0:08:13]} 44. Kc1 {[%clk 0:25:11]} 44... h3 {[%clk 0:08:23]} 45.
Kb2 {[%clk 0:24:12]} 45... h2 {[%clk 0:08:47]} 46. Kb1 {[%clk 0:24:39]} 46...
h1=Q+ {[%clk 0:09:11]} 47. Kb2 {[%clk 0:25:02]} 47... Rxa2+ {[%clk 0:09:24]} 48.
Kxa2 {[%clk 0:25:22]} 48... Qc1 {[%clk 0:09:49]} 49. Kb3 {[%clk 0:25:46]} 49...
Qb1+ {[%clk 0:10:11]} 50. Ka3 {[%clk 0:26:09]} 50... Qb4+ {[%clk 0:10:37]} 51.
Ka2 {[%clk 0:26:23]} 51... Nc3+ {[%clk 0:11:05]} 52. Ka1 {[%clk 0:26:48]} 52...
Qb1# {[%clk 0:11:34]} 0-1

[Variant "Standard"]
[Site "Europe Echecs"]

[Event "Championnat du monde jeunes U10"]
[Date "2024.11.17"]
[White "Chkhartishvili, Lazare"]
[Black "Roth, Elai"]
[WhiteElo "1836"]
[BlackElo "1577"]
[Round "3.10"]
[Result "0-1"]
[TimeControl "5400+30"]

1. e4 {[%clk 1:30:59]} 1... c5 {[%clk 1:30:55]} 2. Nf3 {[%clk 1:31:22]} 2... e6
{[%clk 1:31:23]} 3. d4 {[%clk 1:31:14]} 3... cxd4 {[%clk 1:31:46]} 4. Nxd4
{[%clk 1:31:37]} 4... Nf6 {[%clk 1:32:07]} 5. Bd3 {[%clk 1:31:50]} 5... Nc6
{[%clk 1:32:29]} 6. Nxc6 {[%clk 1:31:59]} 6... dxc6 {[%clk 1:32:53]} 7. O-O
{[%clk 1:31:16]} 7... e5 {[%clk 1:33:00]} 8. h3 {[%clk 1:23:28]} 8... Bc5 {[%clk
1:27:11]} 9. Nc3 {[%clk 1:19:28]} 9... Be6 {[%clk 1:21:10]} 10. Na4 {[%clk
1:16:05]} 10... Bd6 {[%clk 1:21:15]} 11. Be3 {[%clk 1:16:03]} 11... Qa5 {[%clk
1:16:56]} 12. c3 {[%clk 0:59:49]} 12... Rd8 {[%clk 1:13:34]} 13. b4 {[%clk
0:53:27]} 13... Qc7 {[%clk 1:07:41]} 14. Bxa7 {[%clk 0:48:06]} 14... Qe7 {[%clk
1:01:16]} 15. Bb6 {[%clk 0:46:41]} 15... Bc7 {[%clk 0:51:59]} 16. Bxc7 {[%clk
0:43:29]} 16... Qxc7 {[%clk 0:52:20]} 17. Qe2 {[%clk 0:43:48]} 17... O-O {[%clk
0:45:49]} 18. Nc5 {[%clk 0:41:58]} 18... Bc8 {[%clk 0:41:53]} 19. Qe3 {[%clk
0:34:55]} 19... Rd6 {[%clk 0:37:29]} 20. Rfd1 {[%clk 0:31:09]} 20... Nh5 {[%clk
0:29:52]} 21. Be2 {[%clk 0:17:26]} 21... Nf4 {[%clk 0:29:00]} 22. Rxd6 {[%clk
0:14:06]} 22... Qxd6 {[%clk 0:29:22]} 23. Nd3 {[%clk 0:07:45]} 23... Nxe2+
{[%clk 0:24:39]} 24. Qxe2 {[%clk 0:08:12]} 24... Be6 {[%clk 0:23:01]} 25. Nc5
{[%clk 0:08:08]} 25... b5 {[%clk 0:22:51]} 26. Rd1 {[%clk 0:07:15]} 26... Qe7
{[%clk 0:23:03]} 27. Nxe6 {[%clk 0:04:49]} 27... Qxe6 {[%clk 0:23:30]} 28. f3
{[%clk 0:05:01]} 28... h6 {[%clk 0:23:25]} 29. Kf2 {[%clk 0:04:02]} 29... Ra8
{[%clk 0:22:48]} 30. Rd2 {[%clk 0:04:28]} 30... Ra3 {[%clk 0:21:18]} 31. Rc2
{[%clk 0:04:49]} 31... Qd7 {[%clk 0:18:03]} 32. Ke3 {[%clk 0:04:15]} 32... Qd4#
{[%clk 0:17:00]} 0-1

[Variant "Standard"]
[Site "Europe Echecs"]

[Event "Championnat du monde jeunes U10"]
[Date "2024.11.17"]
[White "Yevsieiev, Yaroslav"]
[Black "Veber, Tibor"]
[WhiteElo "1706"]
[BlackElo "1532"]
[Round "3.11"]
[Result "1-0"]
[TimeControl "5400+30"]

1. e4 {[%clk 1:30:58]} 1... e5 {[%clk 1:30:53]} 2. Nf3 {[%clk 1:31:25]} 2... Nf6
{[%clk 1:30:52]} 3. Nxe5 {[%clk 1:31:50]} 3... d6 {[%clk 1:29:27]} 4. Nf3 {[%clk
1:32:14]} 4... Nxe4 {[%clk 1:28:09]} 5. c3 {[%clk 1:32:40]} 5... Be7 {[%clk
1:26:47]} 6. Qa4+ {[%clk 1:33:05]} 6... Kf8 {[%clk 1:27:00]} 7. Qxe4 {[%clk
1:35:24]} 7... Nc6 {[%clk 1:27:01]} 8. Bb5 {[%clk 1:35:42]} 8... Bd7 {[%clk
1:27:13]} 9. O-O {[%clk 1:36:05]} 9... g6 {[%clk 1:27:03]} 10. Re1 {[%clk
1:36:28]} 10... Ke8 {[%clk 1:26:29]} 11. d4 {[%clk 1:36:49]} 11... a6 {[%clk
1:26:47]} 12. Ba4 {[%clk 1:37:11]} 12... Bf5 {[%clk 1:26:32]} 13. Bxc6+ {[%clk
1:37:31]} 13... bxc6 {[%clk 1:26:40]} 14. Qxc6+ {[%clk 1:37:58]} 14... Bd7
{[%clk 1:26:08]} 15. Qe4 {[%clk 1:38:21]} 15... h5 {[%clk 1:26:06]} 16. Bg5
{[%clk 1:38:46]} 16... Be6 {[%clk 1:26:02]} 17. Bxe7 {[%clk 1:39:09]} 17... Qxe7
{[%clk 1:26:18]} 18. Qxa8+ {[%clk 1:39:37]} 1-0

[Variant "Standard"]
[Site "Europe Echecs"]

[Event "Championnat du monde jeunes U10"]
[Date "2024.11.17"]
[White "Lenkov, Stanislav"]
[Black "Wu, Chenyu"]
[WhiteElo "1693"]
[BlackElo "1503"]
[Round "3.13"]
[Result "1-0"]
[TimeControl "5400+30"]

1. e4 {[%clk 1:30:27]} 1... e5 {[%clk 1:30:40]} 2. Nf3 {[%clk 1:30:25]} 2... Nc6
{[%clk 1:31:04]} 3. Bb5 {[%clk 1:30:02]} 3... a6 {[%clk 1:30:55]} 4. Ba4 {[%clk
1:28:43]} 4... Nf6 {[%clk 1:30:22]} 5. d3 {[%clk 1:29:01]} 5... b5 {[%clk
1:30:05]} 6. Bb3 {[%clk 1:29:13]} 6... d6 {[%clk 1:30:05]} 7. c3 {[%clk
1:28:37]} 7... Be7 {[%clk 1:30:05]} 8. h3 {[%clk 1:27:26]} 8... O-O {[%clk
1:30:03]} 9. O-O {[%clk 1:26:44]} 9... Be6 {[%clk 1:29:31]} 10. Re1 {[%clk
1:23:18]} 10... h6 {[%clk 1:25:25]} 11. d4 {[%clk 1:20:53]} 11... exd4 {[%clk
1:25:02]} 12. cxd4 {[%clk 1:19:14]} 12... d5 {[%clk 1:24:54]} 13. e5 {[%clk
1:19:05]} 13... Ne4 {[%clk 1:20:30]} 14. Nc3 {[%clk 1:16:45]} 14... Nxc3 {[%clk
1:16:51]} 15. bxc3 {[%clk 1:17:02]} 15... Bf5 {[%clk 1:16:42]} 16. Bf4 {[%clk
1:12:23]} 16... Na5 {[%clk 1:15:32]} 17. Bc2 {[%clk 1:10:52]} 17... Bxc2 {[%clk
1:14:45]} 18. Qxc2 {[%clk 1:11:19]} 18... Nc4 {[%clk 1:14:46]} 19. Qf5 {[%clk
1:10:52]} 19... Rb8 {[%clk 1:10:04]} 20. Rab1 {[%clk 1:01:40]} 20... Rb6 {[%clk
1:09:13]} 21. Nd2 {[%clk 0:59:23]} 21... Nxd2 {[%clk 1:06:50]} 22. Bxd2 {[%clk
0:59:39]} 22... Qe8 {[%clk 0:59:00]} 23. f4 {[%clk 0:57:07]} 23... Bh4 {[%clk
0:57:33]} 24. Re3 {[%clk 0:56:33]} 24... Qd8 {[%clk 0:53:24]} 25. g3 {[%clk
0:51:53]} 25... Be7 {[%clk 0:51:38]} 26. Kh2 {[%clk 0:50:57]} 26... c5 {[%clk
0:47:43]} 27. Rf3 {[%clk 0:48:12]} 27... cxd4 {[%clk 0:47:56]} 28. cxd4 {[%clk
0:48:38]} 28... Rc6 {[%clk 0:48:08]} 29. Qd3 {[%clk 0:48:03]} 29... f5 {[%clk
0:46:24]} 30. Rff1 {[%clk 0:43:57]} 30... Rc4 {[%clk 0:46:25]} 31. Rfc1 {[%clk
0:41:04]} 31... Qa8 {[%clk 0:41:46]} 32. Rxc4 {[%clk 0:38:59]} 32... dxc4 {[%clk
0:41:52]} 33. Qe3 {[%clk 0:37:55]} 33... Rd8 {[%clk 0:40:28]} 34. Ba5 {[%clk
0:36:14]} 34... Rd7 {[%clk 0:37:26]} 35. e6 {[%clk 0:29:24]} 35... Rd5 {[%clk
0:36:50]} 36. Qf3 {[%clk 0:29:36]} 36... Qc6 {[%clk 0:36:32]} 37. Qe3 {[%clk
0:28:19]} 37... Qb7 {[%clk 0:32:54]} 38. a3 {[%clk 0:28:08]} 38... Qa7 {[%clk
0:33:08]} 39. Bc3 {[%clk 0:25:13]} 39... Bxa3 {[%clk 0:32:37]} 40. g4 {[%clk
0:21:51]} 40... fxg4 {[%clk 0:23:17]} 41. hxg4 {[%clk 0:21:56]} 41... Qe7 {[%clk
0:23:16]} 42. Kg3 {[%clk 0:22:09]} 42... b4 {[%clk 0:21:34]} 43. Bxb4 {[%clk
0:22:17]} 43... Bxb4 {[%clk 0:21:46]} 44. Rxb4 {[%clk 0:22:45]} 44... Rd6 {[%clk
0:15:03]} 45. Rb8+ {[%clk 0:22:30]} 45... Rd8 {[%clk 0:15:20]} 46. Rxd8+ {[%clk
0:22:24]} 46... Qxd8 {[%clk 0:15:42]} 47. e7 {[%clk 0:22:43]} 47... Qe8 {[%clk
0:16:01]} 48. Qe6+ {[%clk 0:20:15]} 48... Kh8 {[%clk 0:16:06]} 49. d5 {[%clk
0:19:30]} 49... Kh7 50. d6 {[%clk 0:19:09]} 50... Qb5 {[%clk 0:14:56]} 51. Qf5+
{[%clk 0:19:35]} 51... Qxf5 {[%clk 0:15:19]} 52. gxf5 {[%clk 0:19:37]} 52... c3
{[%clk 0:15:38]} 53. e8=Q {[%clk 0:20:00]} 53... c2 {[%clk 0:15:00]} 1-0

[Variant "Standard"]
[Site "Europe Echecs"]

[Event "Championnat du monde jeunes U10"]
[Date "2024.11.17"]
[White "Wang, Yuwei"]
[Black "Radovic, Koca"]
[WhiteElo "1576"]
[BlackElo "1626"]
[Round "3.14"]
[Result "1-0"]
[TimeControl "5400+30"]

1. d4 {[%clk 1:30:58]} 1... Nf6 {[%clk 1:30:54]} 2. c4 {[%clk 1:31:24]} 2... e5
{[%clk 1:31:14]} 3. e3 {[%clk 1:31:06]} 3... Bb4+ {[%clk 1:21:15]} 4. Nc3 {[%clk
1:31:14]} 4... Bxc3+ {[%clk 1:21:33]} 5. bxc3 {[%clk 1:31:37]} 5... exd4 {[%clk
1:21:39]} 6. cxd4 {[%clk 1:31:58]} 6... O-O {[%clk 1:21:54]} 7. Bd3 {[%clk
1:31:59]} 7... d5 {[%clk 1:19:45]} 8. Nf3 {[%clk 1:31:37]} 8... Bg4 {[%clk
1:17:10]} 9. h3 {[%clk 1:31:17]} 9... Bh5 {[%clk 1:16:29]} 10. O-O {[%clk
1:30:04]} 10... Ne4 {[%clk 1:15:27]} 11. Ba3 Re8 {[%clk 1:13:33]} 12. g4 {[%clk
1:12:00]} 12... Bg6 {[%clk 1:12:26]} 13. Rc1 {[%clk 1:04:30]} 13... Nc6 14. cxd5
{[%clk 1:03:29]} 14... Qxd5 {[%clk 1:01:20]} 15. Bc4 {[%clk 0:57:31]} 15... Qd8
{[%clk 0:44:20]} 16. Bb5 {[%clk 0:48:15]} 16... Qd5 {[%clk 0:33:10]} 17. Qb3
{[%clk 0:44:44]} 17... Qxb3 {[%clk 0:24:30]} 18. axb3 {[%clk 0:44:58]} 18...
Rab8 {[%clk 0:22:16]} 19. d5 {[%clk 0:43:43]} 19... a6 {[%clk 0:22:28]} 20. Ba4
{[%clk 0:44:07]} 20... b5 {[%clk 0:22:21]} 21. Rxc6 {[%clk 0:44:23]} 21... bxa4
22. bxa4 {[%clk 0:44:46]} 22... Rb3 {[%clk 0:21:00]} 23. Ra1 {[%clk 0:43:16]}
23... Nc3 {[%clk 0:15:10]} 24. Rxc7 {[%clk 0:41:49]} 24... Nxd5 {[%clk 0:13:35]}
25. Ra7 {[%clk 0:37:53]} 25... Bd3 {[%clk 0:12:53]} 26. Ne5 {[%clk 0:34:55]}
26... Be2 {[%clk 0:11:26]} 27. Nxf7 {[%clk 0:33:35]} 27... h6 {[%clk 0:08:51]}
28. Nd6 {[%clk 0:33:22]} 28... Rd8 {[%clk 0:08:12]} 29. Nf5 {[%clk 0:31:14]}
29... g6 {[%clk 0:06:10]} 30. Nxh6+ {[%clk 0:31:38]} 1-0

[Variant "Standard"]
[Site "Europe Echecs"]